fUSD/lending_fUSD_20241125
["ID","MTS","AMOUNT","RATE_DAILY","PERIOD"]
[343257622,1732533056363,-151.0,0.000459,14]
[343257623,1732533056373,-1669.452922,0.000459,14]
[343257624,1732533056383,-1669.452922,0.000459,14]
[343257625,1732533056393,-63337.17128389,0.000459,14]
[343257626,1732533056402,-500.0,0.00045902,21]
[343257627,1732533056412,-500.0,0.00045902,21]
[343257628,1732533056421,-2213.91,0.00045903,21]
[343257629,1732533056430,-500.0,0.00045903,21]
[343257630,1732533056440,-577.14,0.00045903,21]
[343257631,1732533056449,-500.0,0.00045903,21]
[343257632,1732533056459,-1617.04,0.00045903,21]
[343257633,1732533056471,-546.9,0.00045903,21]
[343257634,1732533056482,-1763.64,0.00045903,21]
[343257635,1732533056491,-4763.25,0.00045903,21]
[343257636,1732533056501,-261.22831617,0.00045904,21]
[343257637,1732533056510,-1721.9,0.00045904,21]
[343257638,1732533056520,-2153.49,0.00045904,21]
[343257639,1732533056529,-1113.59,0.00045904,21]
[343257640,1732533056538,-2119.8,0.00045904,21]
[343257641,1732533056548,-500.0,0.00045904,21]
[343257642,1732533056558,-843.63,0.00045904,2]
[343257643,1732533056567,-1553.14,0.00045904,21]
[343257644,1732533056577,-894.49,0.00045904,21]
[343257645,1732533056587,-1431.01,0.00045904,21]
[343257646,1732533056596,-512.9,0.00045904,21]
[343257647,1732533056606,-1259.85,0.00045904,21]
[343257648,1732533056615,-500.0,0.00045904,21]
[343257649,1732533056625,-3065.29,0.00045904,21]
[343257650,1732533056634,-702.07,0.00045904,21]
[343257651,1732533056644,-500.0,0.00045904,21]
[343257652,1732533056654,-155.439369,0.00045904,21]
[343257653,1732533056664,-659.31,0.00045904,21]
[343257654,1732533056673,-686.68,0.00045904,21]
[343257656,1732533056683,-5528.84,0.00045905,21]
[343257657,1732533056693,-1922.44,0.00045905,21]
[343257658,1732533056703,-2000.0,0.00045919,120]
[343257659,1732533056712,-211.86513187,0.00045924,21]
[343257660,1732533056725,-761.85,0.00045924,21]
[343257661,1732533056735,-928.86,0.00045924,21]
[343257662,1732533056745,-779.71,0.00045924,21]
[343257663,1732533056754,-500.0,0.00045924,21]
[343257664,1732533056763,-580.99,0.00045924,21]
[343257665,1732533056773,-500.0,0.00045924,21]
[343257666,1732533056783,-818.46,0.00045924,21]
[343257667,1732533056792,-752.28,0.00045924,21]
[343257668,1732533056802,-1102.69,0.00045924,21]
[343257669,1732533056812,-767.35,0.00045924,21]
[343257670,1732533056822,-150.0,0.00045927,30]
[343257671,1732533056831,-6242.43590503,0.0004597,30]
[343257672,1732533056841,-374.29345389,0.0004597,30]
[343257673,1732533056850,-1141069.50910607,0.0004597,2]
[343257674,1732533056860,-151.0,0.0004597,14]
[343257675,1732533056958,-151.0,0.0004597,14]
[343257676,1732533056972,-151.0,0.0004597,14]
[343257677,1732533056983,-151.0,0.0004597,14]
[343257678,1732533056992,-1669.452922,0.0004597,14]
[343257679,1732533057002,-1669.452922,0.0004597,14]
[343257680,1732533057012,-151.0,0.0004597,14]
[343257681,1732533057022,-431.92407613,0.00045998,28]
[343257682,1732533057032,-500.0,0.00045999,120]
[343257683,1732533057042,-150.0,0.00046,120]
[343257684,1732533057052,-2700.0,0.00046,120]
[343257685,1732533057062,-1800.0,0.00046,47]
[343257686,1732533057071,-200.0,0.00046,120]
[343257687,1732533057081,-157628.14635477,0.00046,20]
[343257688,1732533057091,-521.91825285,0.00046,2]
[343257689,1732533057100,-10049.8825,0.00046,14]
[343257690,1732533057110,-150.0,0.00046,96]
[343257691,1732533057119,-150.0,0.00046,14]
[343257692,1732533057129,-15000.0,0.00046,120]
[343257693,1732533057139,-250.0,0.00046,60]
[343257694,1732533057148,-3511.8860464,0.00046,30]
[343257695,1732533057157,-10916.70357039,0.00046,10]
[343257696,1732533057170,-316.24,0.0004601,86]
[343257697,1732533057180,-2155.44,0.00046098,30]
[343257698,1732533057189,-230.56550042,0.00046137,15]
[343257699,1732533057199,-500.0,0.00046172,120]
[343257700,1732533057209,-500.0,0.00046176,21]
[343257701,1732533057220,-500.0,0.00046176,21]
[343257702,1732533057231,-2213.91,0.00046177,21]
[343257703,1732533057240,-500.0,0.00046177,21]
[343257704,1732533057251,-577.14,0.00046177,21]
[343257705,1732533057261,-500.0,0.00046177,21]
[343257706,1732533057271,-1617.04,0.00046177,21]
[343257707,1732533057281,-546.9,0.00046177,21]
[343257708,1732533057290,-1763.64,0.00046177,21]
[343257709,1732533057301,-4763.25,0.00046177,21]
[343257710,1732533057310,-1721.9,0.00046178,21]
[343257711,1732533057320,-2153.49,0.00046178,21]
[343257712,1732533057329,-1113.59,0.00046178,21]
[343257713,1732533057339,-2119.8,0.00046178,21]
[343257714,1732533057349,-202.26035678,0.00046178,21]
[343257715,1732533057358,-843.63,0.00046178,2]
[343257716,1732533057368,-1553.14,0.00046178,21]
[343257717,1732533057377,-894.49,0.00046178,21]
[343257718,1732533057388,-1431.01,0.00046178,21]
[343257719,1732533057397,-512.9,0.00046178,21]
[343257720,1732533057407,-1259.85,0.00046178,21]
[343257721,1732533057417,-419.29509945,0.00046178,21]
[343257722,1732533057427,-3065.29,0.00046178,21]
[343257723,1732533057437,-702.07,0.00046178,21]
[343257724,1732533057446,-500.0,0.00046178,21]
[343257725,1732533057456,-155.439369,0.00046178,21]
[343257726,1732533057465,-659.31,0.00046178,21]
[343257727,1732533057476,-686.68,0.00046178,21]
[343257728,1732533057485,-5529.001461,0.00046179,21]
[343257729,1732533057495,-1922.62568184,0.00046179,21]
[343257730,1732533057505,-761.85,0.00046198,21]
[343257731,1732533057515,-928.86,0.00046198,21]
[343257732,1732533057524,-779.71,0.00046198,21]
[343257733,1732533057535,-500.0,0.00046198,21]
[343257734,1732533057545,-580.99,0.00046198,21]
[343257735,1732533057555,-500.0,0.00046198,21]
[343257736,1732533057564,-818.46,0.00046198,21]
[343257737,1732533057574,-752.28,0.00046198,21]
[343257738,1732533057584,-1102.69,0.00046198,21]
[343257739,1732533057594,-767.35,0.00046198,21]
[343257740,1732533057603,-154.79,0.00046254,30]
[343257741,1732533057613,-867.5,0.00046254,30]
[343257742,1732533057623,-363.18,0.00046255,30]
[343257743,1732533057634,-434.13,0.00046255,30]
[343257744,1732533057643,-209.04,0.00046255,30]
[343257745,1732533057653,-310.01,0.00046255,30]
[343257746,1732533057663,-220.14,0.00046255,30]
[343257747,1732533057673,-434.13,0.00046255,30]
[343257748,1732533057683,-434.13,0.00046255,30]
[343257749,1732533057693,-434.13,0.00046255,30]
[343257750,1732533057703,-431.47,0.00046255,30]
[343257751,1732533057714,-150.0,0.00046299,20]
[343257752,1732533057724,-151.0,0.00046301,14]
[343257753,1732533057734,-151.0,0.00046301,14]
[343257754,1732533057744,-1669.452922,0.00046301,14]
[343257755,1732533057754,-1669.452922,0.00046301,14]
[343257756,1732533057763,-500.0,0.00046345,13]
[343257757,1732533057773,-500.0,0.00046345,13]
[343257758,1732533057783,-500.0,0.00046345,13]
[343257759,1732533057793,-500.0,0.00046345,13]
[343257760,1732533057802,-500.0,0.00046345,13]
[343257761,1732533057811,-500.0,0.00046345,13]
[343257762,1732533057821,-500.0,0.00046345,13]
[343257763,1732533057831,-500.0,0.00046345,13]
[343257764,1732533057840,-500.0,0.00046345,13]
[343257765,1732533057850,-500.0,0.00046345,13]
[343257766,1732533057859,-500.0,0.00046345,13]
[343257767,1732533057868,-500.0,0.00046345,13]
[343257768,1732533057878,-500.0,0.00046345,13]
[343257769,1732533057888,-519.0,0.00046345,13]
[343257770,1732533057898,-500.0,0.00046345,13]
[343257771,1732533057907,-500.0,0.00046345,13]
[343257772,1732533057916,-500.0,0.00046345,13]
[343257773,1732533057926,-500.0,0.00046345,13]
[343257774,1732533057936,-500.0,0.00046345,13]
[343257775,1732533057946,-500.0,0.00046345,13]
[343257776,1732533057955,-500.0,0.00046345,13]
[343257777,1732533057965,-500.0,0.00046345,13]
[343257778,1732533057976,-500.0,0.00046345,13]
[343257779,1732533057986,-500.0,0.00046345,13]
[343257780,1732533057995,-500.0,0.00046345,13]
[343257781,1732533058005,-500.0,0.00046345,13]
[343257782,1732533058014,-500.0,0.00046345,13]
[343257783,1732533058024,-500.0,0.00046345,13]
[343257784,1732533058033,-313.0,0.00046345,13]
[343257785,1732533058044,-100000.0,0.000464,120]
[343257786,1732533058054,-169.75698,0.00046415,30]
[343257787,1732533058069,-151.0,0.00046438,120]
[343257788,1732533058079,-500.0,0.00046446,120]
[343257789,1732533058089,-500.0,0.00046446,120]
[343257790,1732533058098,-500.0,0.0004645,21]
[343257791,1732533058109,-539.31005425,0.0004645,21]
[343257792,1732533058119,-2213.91,0.00046451,21]
[343257793,1732533058128,-500.0,0.00046451,21]
[343257794,1732533058138,-577.14,0.00046451,21]
[343257795,1732533058147,-500.0,0.00046451,21]
[343257796,1732533058158,-1617.04,0.00046451,21]
[343257797,1732533058169,-547.05880356,0.00046451,21]
[343257798,1732533058182,-1763.66565106,0.00046451,21]
[343257799,1732533058200,-4763.25,0.00046451,21]
[343257800,1732533058217,-1721.90675474,0.00046452,21]
[343257801,1732533058237,-2153.70677563,0.00046452,21]
[343257802,1732533058247,-1113.69,0.00046452,21]
[343257803,1732533058257,-2119.87758957,0.00046452,21]
[343257804,1732533058266,-843.6820191,0.00046452,2]
[343257805,1732533058275,-1553.20787045,0.00046452,21]
[343257806,1732533058284,-894.60334304,0.00046452,21]
[343257807,1732533058294,-1431.03537737,0.00046452,21]
[343257808,1732533058303,-512.95883152,0.00046452,21]
[343257809,1732533058312,-1259.85,0.00046452,21]
[343257810,1732533058322,-3065.39,0.00046452,21]
[343257811,1732533058331,-702.10905263,0.00046452,21]
[343257812,1732533058340,-324.04753153,0.00046452,21]
[343257813,1732533058350,-659.3763322,0.00046452,21]
[343257814,1732533058360,-686.80274087,0.00046452,21]
[343257815,1732533058369,-444.287,0.00046459,60]
[343257816,1732533058379,-5000.0,0.0004646,120]
[343257817,1732533058389,-761.85,0.00046472,21]
[343257818,1732533058398,-928.86,0.00046472,21]
[343257819,1732533058408,-779.71,0.00046472,21]
[343257820,1732533058417,-500.0,0.00046472,21]
[343257821,1732533058426,-580.99,0.00046472,21]
[343257822,1732533058435,-375.50571613,0.00046472,21]
[343257823,1732533058445,-818.46,0.00046472,21]
[343257824,1732533058455,-752.28,0.00046472,21]
[343257825,1732533058464,-1102.69,0.00046472,21]
[343257826,1732533058476,-767.35,0.00046472,21]
[343257827,1732533058485,-204.0,0.0004648,30]
[343257828,1732533058494,-201.0,0.0004648,30]
[343257829,1732533058504,-204.0,0.0004648,30]
[343257830,1732533058514,-200.0,0.00046491,120]
[343257831,1732533058524,-798.04889469,0.00046497,15]
[343257832,1732533058534,-27289.21533191,0.000465,14]
[343257833,1732533058543,-24346.82432277,0.00046558,2]
[343257834,1732533058554,-500.0,0.00046567,17]
[343257835,1732533058564,-500.0,0.00046567,17]
[343257836,1732533058573,-500.0,0.00046567,17]
[343257837,1732533058583,-500.0,0.00046567,17]
[343257838,1732533058592,-500.0,0.00046567,17]
[343257839,1732533058601,-500.0,0.00046567,17]
[343257840,1732533058611,-500.0,0.00046567,17]
[343257841,1732533058620,-500.0,0.00046567,17]
[343257842,1732533058630,-500.0,0.00046567,17]
[343257843,1732533058639,-500.0,0.00046567,17]
[343257844,1732533058648,-500.0,0.00046567,17]
[343257845,1732533058658,-500.0,0.00046567,17]
[343257846,1732533058668,-500.0,0.00046567,17]
[343257847,1732533058677,-500.0,0.00046567,17]
[343257848,1732533058687,-500.0,0.00046567,17]
[343257849,1732533058696,-500.0,0.00046567,17]
[343257850,1732533058706,-500.0,0.00046567,17]
[343257851,1732533058715,-500.0,0.00046567,17]
[343257852,1732533058727,-500.0,0.00046567,17]
[343257853,1732533058736,-500.0,0.00046567,17]
[343257854,1732533058745,-504.11278165,0.00046575,15]
[343257855,1732533058755,-150.0,0.00046575,30]
[343257856,1732533058765,-150.0,0.00046575,30]
[343257857,1732533058775,-500.0,0.00046575,30]
[343257858,1732533058784,-161.4061042,0.00046575,30]
[343257859,1732533058794,-150.0,0.00046575,30]
[343257860,1732533058803,-150.0,0.00046575,30]
[343257861,1732533058812,-500.0,0.00046575,30]
[343257862,1732533058821,-153.0,0.00046575,31]
[343257863,1732533058831,-153.0,0.00046575,31]
[343257864,1732533058840,-153.0,0.00046575,31]
[343257865,1732533058849,-153.0,0.00046575,31]
[343257866,1732533058858,-153.0,0.00046575,31]
[343257867,1732533058867,-153.0,0.00046575,31]
[343257868,1732533058877,-153.0,0.00046575,31]
[343257869,1732533058887,-153.0,0.00046575,31]
[343257870,1732533058896,-153.0,0.00046575,31]
[343257871,1732533058905,-153.0,0.00046575,31]
[343257872,1732533058915,-153.0,0.00046575,31]
[343257873,1732533058925,-153.0,0.00046575,31]
[343257874,1732533058934,-4000.0,0.00046575,2]
[343257875,1732533058943,-943.15610622,0.0004658,120]
[343257876,1732533058953,-943.15610622,0.0004658,120]
[343257877,1732533058963,-943.15610622,0.0004658,120]
[343257878,1732533058974,-943.15610622,0.0004658,120]
[343257879,1732533058984,-943.15610622,0.0004658,120]
[343257880,1732533058993,-943.15610622,0.0004658,120]
[343257881,1732533059004,-943.15610622,0.0004658,120]
[343257882,1732533059014,-943.15610622,0.0004658,120]
[343257883,1732533059024,-943.15610622,0.0004658,120]
[343257884,1732533059033,-943.15610622,0.0004658,120]
[343257885,1732533059043,-943.15610622,0.0004658,120]
[343257886,1732533059052,-943.15610622,0.0004658,120]
[343257887,1732533059061,-943.15610622,0.0004658,120]
[343257888,1732533059071,-943.15610622,0.0004658,120]
[343257889,1732533059080,-943.15610622,0.0004658,120]
[343257890,1732533059090,-943.15610622,0.0004658,120]
[343257891,1732533059099,-943.15610622,0.0004658,120]
[343257892,1732533059340,-943.15610622,0.0004658,120]
[343257893,1732533059350,-943.15610622,0.0004658,120]
[343257894,1732533059360,-943.15,0.0004658,120]
[343257895,1732533059370,-1414.73415934,0.0004658,120]
[343257896,1732533059379,-1414.73415934,0.0004658,120]
[343257897,1732533059389,-1414.73415934,0.0004658,120]
[343257898,1732533059399,-1414.73415934,0.0004658,120]
[343257899,1732533059408,-1414.73415934,0.0004658,120]
[343257900,1732533059418,-1414.73415934,0.0004658,120]
[343257901,1732533059427,-1414.73415934,0.0004658,120]
[343257902,1732533059436,-1414.73415934,0.0004658,120]
[343257903,1732533059445,-1414.73415934,0.0004658,120]
[343257904,1732533059455,-1414.73415934,0.0004658,120]
[343257905,1732533059464,-1414.73415934,0.0004658,120]
[343257906,1732533059474,-1414.73415934,0.0004658,120]
[343257907,1732533059484,-160.19048455,0.0004658,120]
[343257908,1732533059493,-160.19048455,0.0004658,120]
[343257909,1732533059503,-160.19048455,0.0004658,120]
[343257910,1732533059513,-160.19048455,0.0004658,120]
[343257911,1732533059523,-160.19048455,0.0004658,120]
[343257912,1732533059533,-160.19048455,0.0004658,120]
[343257913,1732533059543,-160.19048455,0.0004658,120]
[343257914,1732533059552,-160.19048455,0.0004658,120]
[343257915,1732533059562,-160.19,0.0004658,120]
[343257916,1732533059571,-154.46939582,0.0004658,120]
[343257917,1732533059580,-154.46939582,0.0004658,120]
[343257918,1732533059590,-154.46939582,0.0004658,120]
[343257919,1732533059600,-154.46939582,0.0004658,120]
[343257920,1732533059609,-154.46939582,0.0004658,120]
[343257921,1732533059619,-154.46939582,0.0004658,120]
[343257922,1732533059629,-154.46939582,0.0004658,120]
[343257923,1732533059638,-154.46939582,0.0004658,120]
[343257924,1732533059647,-10000.0,0.000466,120]
[343257925,1732533059656,-165.57,0.00046637,2]
[343257926,1732533059666,-500.0,0.00046638,120]
[343257927,1732533059676,-2000.0,0.00046694,120]
[343257928,1732533059685,-500.0,0.0004672,120]
[343257929,1732533059694,-500.0,0.00046724,21]
[343257930,1732533059704,-2213.91,0.00046725,21]
[343257931,1732533059713,-500.0,0.00046725,21]
[343257932,1732533059723,-577.14,0.00046725,21]
[343257933,1732533059732,-500.0,0.00046725,21]
[343257934,1732533059743,-1617.04,0.00046725,21]
[343257935,1732533059752,-4763.25,0.00046725,21]
[343257936,1732533059763,-761.85,0.00046746,21]
[343257937,1732533059772,-928.86,0.00046746,21]
[343257938,1732533059781,-779.71,0.00046746,21]
[343257939,1732533059790,-489.47959138,0.00046746,21]
[343257940,1732533059799,-580.99,0.00046746,21]
[343257941,1732533059808,-818.46,0.00046746,21]
[343257942,1732533059818,-752.28,0.00046746,21]
[343257943,1732533059827,-1102.69,0.00046746,21]
[343257944,1732533059837,-767.35,0.00046746,21]
[343257945,1732533059847,-431.92407613,0.00046749,28]
[343257946,1732533059856,-436.2866229,0.00046775,120]
[343257947,1732533059866,-193.56629592,0.000468,30]
[343257948,1732533059875,-200.09019255,0.00046819,2]
[343257949,1732533059884,-203.0,0.0004683,30]
[343257950,1732533059894,-214.0,0.0004683,30]
[343257951,1732533059903,-150.0,0.00046849,30]
[343257952,1732533059913,-151.61183532,0.00046849,30]
[343257953,1732533059922,-500.0,0.00046849,30]
[343257954,1732533059932,-150.0,0.00046849,30]
[343257955,1732533059941,-258.47191595,0.00046849,30]
[343257956,1732533059950,-500.0,0.00046849,30]
[343257957,1732533059959,-5000.0,0.0004689,30]
[343257958,1732533059968,-9976.52276523,0.000469,2]
[343257959,1732533059980,-179.49,0.00046903,2]
[343257960,1732533059989,-154.46939582,0.00046966,120]
[343257961,1732533059998,-230.56550042,0.0004697,15]
[343257962,1732533060007,-53870.53726551,0.0004699,10]
[343257963,1732533060017,-213.015889,0.0004699,14]
[343257964,1732533060027,-156.635685,0.0004699,14]
[343257965,1732533060037,-151.0,0.0004699,14]
[343257966,1732533060047,-500.0,0.00046994,120]
[343257967,1732533060057,-500.0,0.00046994,120]
[343257968,1732533060068,-500.0,0.00046998,21]
[343257969,1732533060078,-500.0,0.00046999,120]
[343257970,1732533060088,-2213.91,0.00046999,21]
[343257971,1732533060097,-500.0,0.00046999,21]
[343257972,1732533060107,-577.14,0.00046999,21]
[343257973,1732533060117,-500.0,0.00046999,21]
[343257974,1732533060126,-1617.04,0.00046999,21]
[343257975,1732533060136,-4763.25,0.00046999,21]
[343257976,1732533060146,-1800.0,0.00047,48]
[343257977,1732533060155,-70305.30663555,0.00047,30]
[343257978,1732533060167,-2500.0,0.00047,120]
[343257979,1732533060178,-421.1785679,0.00047,120]
[343257980,1732533060188,-11078.7806465,0.00047,120]
[343257981,1732533060198,-959.45269665,0.00047,30]
[343257982,1732533060208,-10000.0,0.00047,120]
[343257983,1732533060218,-653.77488597,0.00047,30]
[343257984,1732533060231,-200.0,0.00047,108]
[343257985,1732533060242,-16604.20238658,0.00047,30]
[343257986,1732533060252,-150.0,0.00047,14]
[343257987,1732533060263,-333.4453288,0.00047,30]
[343257988,1732533060274,-15000.0,0.00047,120]
[343257989,1732533060285,-46494.772,0.00047,30]
[343257990,1732533060296,-1478.025,0.00047,30]
[343257991,1732533060307,-134604.18786273,0.00047,30]
[343257992,1732533060318,-10115.25241787,0.00047,30]
[343257993,1732533060328,-151.0,0.00047,14]
[343257994,1732533060339,-206.842207,0.00047,14]
[343257995,1732533060350,-1669.452922,0.00047,14]
[343257996,1732533060361,-1669.452922,0.00047,14]
[343257997,1732533060374,-761.85,0.00047019,21]
[343257998,1732533060386,-928.86,0.00047019,21]
[343257999,1732533060396,-779.71,0.00047019,21]
[343258000,1732533060407,-580.99,0.00047019,21]
[343258001,1732533060418,-818.46,0.00047019,21]
[343258002,1732533060428,-752.28,0.00047019,21]
[343258003,1732533060439,-1102.69,0.00047019,21]
[343258004,1732533060449,-767.35,0.00047019,21]
[343258005,1732533060459,-2393.59,0.00047036,7]
[343258006,1732533060469,-1414.73415934,0.00047052,120]
[343258007,1732533060483,-24594.56495912,0.000471,2]
[343258008,1732533060493,-38447.37,0.00047101,7]
[343258009,1732533060507,-170.66275,0.0004712,2]
[343258010,1732533060517,-316.24,0.0004712,96]
[343258011,1732533060527,-150.0,0.00047123,30]
[343258012,1732533060538,-500.0,0.00047123,30]
[343258013,1732533060548,-167.51342809,0.00047123,30]
[343258014,1732533060558,-929.25961228,0.00047123,30]
[343258015,1732533060570,-893.4932,0.00047157,2]
[343258016,1732533060580,-2000.0,0.00047157,2]
[343258017,1732533060590,-500.0,0.00047268,120]
[343258018,1732533060599,-500.0,0.00047272,21]
[343258019,1732533060609,-2213.91,0.00047273,21]
[343258020,1732533060619,-201.11,0.00047273,21]
[343258021,1732533060629,-577.14,0.00047273,21]
[343258022,1732533060640,-500.0,0.00047273,21]
[343258023,1732533060651,-1617.04,0.00047273,21]
[343258024,1732533060661,-4763.25,0.00047273,21]
[343258025,1732533060671,-34203.69937228,0.0004728,2]
[343258026,1732533060683,-761.88220353,0.00047293,21]
[343258027,1732533060694,-929.00788814,0.00047293,21]
[343258028,1732533060704,-779.79659674,0.00047293,21]
[343258029,1732533060714,-581.14814715,0.00047293,21]
[343258030,1732533060727,-818.64338742,0.00047293,21]
[343258031,1732533060737,-752.2919163,0.00047293,21]
[343258032,1732533060748,-1102.83985626,0.00047293,21]
[343258033,1732533060758,-767.50161129,0.00047293,21]
[343258034,1732533060768,-500.0,0.000473,6]
[343258035,1732533060778,-2646.0,0.000473,37]
[343258036,1732533060788,-2338.66421405,0.00047347,11]
[343258037,1732533060798,-236.35067,0.00047386,30]
[343258038,1732533060808,-294.0,0.0004739,30]
[343258039,1732533060818,-204.0,0.0004739,30]
[343258040,1732533060828,-201.0,0.0004739,30]
[343258041,1732533060838,-204.0,0.0004739,30]
[343258042,1732533060852,-150.0,0.00047393,20]
[343258043,1732533060863,-500.0,0.00047394,120]
[343258044,1732533060873,-150.0,0.00047397,30]
[343258045,1732533060884,-500.0,0.00047397,30]
[343258046,1732533060893,-100000.0,0.000474,120]
[343258047,1732533060904,-798.04889469,0.00047432,15]
[343258048,1732533060913,-2000.0,0.00047468,120]
[343258049,1732533060923,-244.112515,0.00047498,120]
[343258050,1732533060933,-431.92407613,0.000475,28]
[343258051,1732533060942,-500.0,0.00047542,120]
[343258052,1732533060952,-500.0,0.00047542,120]
[343258053,1732533060962,-500.0,0.00047546,21]
[343258054,1732533060972,-2213.91,0.00047547,21]
[343258055,1732533060985,-577.14,0.00047547,21]
[343258056,1732533060994,-590.84768199,0.00047547,21]
[343258057,1732533061004,-1617.04,0.00047547,21]
[343258058,1732533061014,-4763.25,0.00047547,21]
[343258059,1732533061025,-200.0,0.00047552,120]
[343258060,1732533061035,-1414.73415934,0.00047558,120]
[343258061,1732533061045,-16713.7679789,0.00047567,2]
[343258062,1732533061055,-340000.88561044,0.00047598,15]
[343258063,1732533061066,-1669.452922,0.00047598,14]
[343258064,1732533061076,-1669.452922,0.00047598,14]
[343258065,1732533061087,-151.0,0.00047598,14]
[343258066,1732533061097,-3460.90234622,0.000476,2]
[343258067,1732533061107,-768301.56287058,0.000476,30]
[343258068,1732533061117,-276923.00456943,0.000476,30]
[343258069,1732533061127,-6242.43590503,0.000476,30]
[343258070,1732533061138,-181.30819975,0.000476,30]
[343258071,1732533061148,-1669.452922,0.000476,14]
[343258072,1732533061158,-1669.452927,0.000476,14]
[343258073,1732533061170,-151.0,0.000476,14]
[343258074,1732533061184,-182.66,0.00047644,2]
[343258075,1732533061194,-82394.61,0.00047644,7]
[343258076,1732533061204,-8317.7,0.00047644,7]
[343258077,1732533061217,-168.41,0.00047669,2]
[343258078,1732533061232,-240.51632409,0.00047671,30]
[343258079,1732533061243,-500.0,0.00047671,30]
[343258080,1732533061256,-10000.0,0.0004768,30]
[343258081,1732533061267,-154.46939582,0.00047688,120]
[343258082,1732533061277,-22040.70683534,0.0004775,120]
[343258083,1732533061287,-500.0,0.00047772,120]
[343258084,1732533061297,-30000.0,0.000478,120]
[343258085,1732533061307,-6336.0,0.000478,120]
[343258086,1732533061316,-6336.0,0.000478,120]
[343258087,1732533061326,-6336.0,0.000478,120]
[343258088,1732533061336,-6336.0,0.000478,120]
[343258089,1732533061345,-6336.0,0.000478,120]
[343258090,1732533061355,-6336.0,0.000478,120]
[343258091,1732533061365,-6336.0,0.000478,120]
[343258092,1732533061374,-6336.0,0.000478,120]
[343258093,1732533061384,-6336.0,0.000478,120]
[343258094,1732533061394,-6336.0,0.000478,120]
[343258095,1732533061404,-2646.0,0.000478,38]
[343258096,1732533061413,-230.56550042,0.00047804,15]
[343258097,1732533061422,-500.0,0.00047816,120]
[343258098,1732533061432,-500.0,0.0004782,21]
[343258099,1732533061442,-2213.99,0.00047821,21]
[343258100,1732533061451,-577.19895492,0.00047821,21]
[343258101,1732533061461,-1617.23418957,0.00047821,21]
[343258102,1732533061470,-4763.48526094,0.00047821,21]
[343258103,1732533061483,-20000.0,0.0004785,120]
[343258104,1732533061492,-155.51014843,0.0004788,120]
[343258105,1732533061501,-203.0,0.000479,30]
[343258106,1732533061515,-214.0,0.000479,30]
[343258107,1732533061524,-30000.0,0.000479,120]
[343258108,1732533061533,-8500.0,0.00047944,16]
[343258109,1732533061543,-500.0,0.00047945,30]
[343258110,1732533061553,-151.31,0.00047945,2]
[343258111,1732533061562,-20000.0,0.0004795,120]
[343258112,1732533061571,-10082.20493319,0.00047958,120]
[343258113,1732533061582,-171.53,0.00047962,2]
[343258114,1732533061592,-500.0,0.00047999,120]
[343258115,1732533061602,-17949.0,0.00048,120]
[343258116,1732533061611,-659.46187563,0.00048,120]
[343258117,1732533061622,-612.26721364,0.00048,120]
[343258118,1732533061631,-953.95776137,0.00048,120]
[343258119,1732533061648,-1800.0,0.00048,49]
[343258120,1732533061659,-226.0,0.00048,120]
[343258121,1732533061668,-39036.86942005,0.00048,120]
[343258122,1732533061678,-208.8,0.00048,90]